[Event "EYCC Open-U12 2019"]
[Site "Bratislava"]
[Date "2019.08.04"]
[Round "3.36"]
[White "Baturina, Marin"]
[Black "Culum, Sanjin"]
[Result "1/2-1/2"]
[ECO "D80"]
[WhiteElo "1573"]
[BlackElo "1912"]
[Annotator "NA"]
[PlyCount "99"]
[EventDate "2019.08.02"]
[EventType "swiss"]
[EventCountry "SVK"]
[SourceTitle "playchess.com"]
[Source "ChessBase"]
[SourceQuality "1"]
[TimeControl "40/5400+30:1800+30"]

1. d4 {[%emt 0:00:00]} Nf6 {[%emt 0:00:00]} 2. c4 {[%emt 0:00:00]} g6 {[%emt 0:00:00]} 3. Nc3 {[%emt 0:00:00]} d5 {[%emt 0:00:03]} 4. Bg5 {[%emt 0:02:01]} Ne4 {[%emt 0:00:40]} 5. Bh4 {[%emt 0:02:08]} Nxc3 {[%emt 0:00:45]} 6. bxc3 {[%emt 0:00:09]} Bg7 {[%emt 0:01:22]} 7. e3 {[%emt 0:01:35]} c5 {[%emt 0:01:47]} 8. Nf3 {[%emt 0:06:02]} O-O {[%emt 0:01:30]} 9. cxd5 {[%emt 0:06:02]} cxd4 {[%emt 0:01:18]} 10. cxd4 {[%emt 0:04:48]} Qxd5 {[%emt 0:00:20]} 11. Bxe7 {[%emt 0:06:49]} Re8 {[%emt 0:00:13]} 12. Bb4 {[%emt 0:04:53]} Nc6 {[%emt 0:07:02]} 13. Bc3 {[%emt 0:03:05]} Bg4 {[%emt 0:04:49]} 14. Be2 {[%emt 0:03:45]} Rac8 {[%emt 0:00:41]} 15. O-O {[%emt 0:06:44]} Bxf3 {[%emt 0:03:43]} 16. Bxf3 {[%emt 0:03:40]} Qc4 {[%emt 0:00:08]} 17. Bd2 {[%emt 0:08:14]} Red8 {[%emt 0:10:20]} 18. Qb3 {[%emt 0:03:17]} Qa6 {[%emt 0:04:04]} 19. Bd5 {[%emt 0:04:25]} Rc7 {[%emt 0:00:56]} 20. Bc4 {[%emt 0:02:07]} Nxd4 {[%emt 0:00:42]} 21. Bxf7+ {[%emt 0:09:18]} Rxf7 {[%emt 0:00:13]} 22. exd4 {[%emt 0:00:06]} Bxd4 {[%emt 0:00:37]} 23. Bc3 {[%emt 0:01:13]} Qf6 {[%emt 0:02:27]} 24. Bxd4 {[%emt 0:03:27]} Rxd4 {[%emt 0:00:13]} 25. Qc3 {[%emt 0:01:07]} Qd6 {[%emt 0:01:16]} 26. Qc8+ {[%emt 0:02:45]} Kg7 {[%emt 0:00:19]} 27. Qc3 {[%emt 0:00:44]} Rc7 {[%emt 0:01:29]} 28. Qb2 {[%emt 0:01:18]} Kf8 {[%emt 0:01:08]} 29. Rae1 {[%emt 0:05:53]} Rf7 {[%emt 0:04:25]} 30. Re2 {[%emt 0:02:30]} Qf6 {[%emt 0:04:14]} 31. Qa3+ {[%emt 0:02:13]} Kg7 {[%emt 0:00:11]} 32. Qxa7 {[%emt 0:00:34]} Rg4 {[%emt 0:01:27]} 33. Qe3 {[%emt 0:00:46]} Rg5 {[%emt 0:02:14]} 34. Qe6 {[%emt 0:01:30]} Qf3 {[%emt 0:00:59]} 35. g3 {[%emt 0:01:27]} Qh5 {[%emt 0:01:21]} 36. Qe4 {[%emt 0:00:50]} Qh3 {[%emt 0:03:52]} 37. Qg2 {[%emt 0:01:07]} Qd7 {[%emt 0:01:32]} 38. Qe4 {[%emt 0:00:26]} h5 {[%emt 0:00:45]} 39. Qe3 {[%emt 0:00:41]} Rd5 {[%emt 0:01:42]} 40. Qc3+ {[%emt 0:00:00]} Kh7 {[%emt 0:00:00]} 41. Qc4 {[%emt 0:06:46]} Rd4 {[%emt 0:02:41]} 42. Qb3 {[%emt 0:11:10]} Rd5 {[%emt 0:01:54]} 43. Rfe1 {[%emt 0:02:49]} Rdf5 {[%emt 0:01:16]} 44. Qe3 {[%emt 0:02:21]} Qa4 {[%emt 0:02:50]} 45. Qb3 {[%emt 0:01:00]} Qd4 {[%emt 0:00:48]} 46. Qb2 {[%emt 0:01:41]} Qc5 {[%emt 0:01:37]} 47. Qc2 {[%emt 0:00:52]} Qb4 {[%emt 0:01:21]} 48. Qb2 {[%emt 0:00:47]} Qc5 {[%emt 0:00:42]} 49. Qc2 {[%emt 0:00:41]} Qb4 {[%emt 0:01:02]} 50. Qb2 {[%emt 0:01:11]} 1/2-1/2

[Event "EYCC Open-U12 2019"]
[Site "Bratislava"]
[Date "2019.08.04"]
[Round "3.37"]
[White "Musaev, Matej Elbek"]
[Black "Labruyere, Roger"]
[Result "0-1"]
[ECO "B90"]
[WhiteElo "1693"]
[BlackElo "1897"]
[Annotator "NA"]
[PlyCount "94"]
[EventDate "2019.08.02"]
[EventType "swiss"]
[EventCountry "SVK"]
[SourceTitle "playchess.com"]
[Source "ChessBase"]
[SourceQuality "1"]
[TimeControl "40/5400+30:1800+30"]

1. e4 {[%emt 0:00:00]} c5 {[%emt 0:00:00]} 2. Nf3 {[%emt 0:00:00]} d6 {[%emt 0:00:00]} 3. d4 {[%emt 0:00:00]} cxd4 {[%emt 0:00:00]} 4. Nxd4 {[%emt 0:00:00]} Nf6 {[%emt 0:00:02]} 5. Nc3 {[%emt 0:00:07]} a6 {[%emt 0:00:05]} 6. f3 {[%emt 0:00:11]} e5 {[%emt 0:00:29]} 7. Nb3 {[%emt 0:00:12]} h5 {[%emt 0:00:41]} 8. Be3 {[%emt 0:00:35]} Be6 {[%emt 0:00:17]} 9. Qd2 {[%emt 0:01:38]} Nbd7 {[%emt 0:00:39]} 10. Be2 {[%emt 0:00:52]} g6 {[%emt 0:02:21]} 11. O-O {[%emt 0:05:46]} Qc7 {[%emt 0:04:09]} 12. Kh1 {[%emt 0:00:13]} Rd8 {[%emt 0:03:10]} 13. f4 {[%emt 0:04:54]} Ng4 {[%emt 0:08:45]} 14. Bxg4 {[%emt 0:00:34]} hxg4 {[%emt 0:02:05]} 15. Nd5 {[%emt 0:03:46]} Bxd5 {[%emt 0:00:18]} 16. exd5 {[%emt 0:01:06]} f5 {[%emt 0:22:51]} 17. Rae1 {[%emt 0:01:36]} Nf6 {[%emt 0:10:16]} 18. Kg1 {[%emt 0:03:24]} Ne4 {[%emt 0:02:39]} 19. Qe2 {[%emt 0:01:24]} Qh7 {[%emt 0:04:57]} 20. g3 {[%emt 0:00:30]} Nxg3 {[%emt 0:00:16]} 21. Qg2 {[%emt 0:02:24]} Nxf1 {[%emt 0:00:26]} 22. Rxf1 {[%emt 0:00:44]} Qh3 {[%emt 0:01:53]} 23. Re1 {[%emt 0:00:37]} Qxg2+ {[%emt 0:00:11]} 24. Kxg2 {[%emt 0:00:08]} Bg7 {[%emt 0:01:30]} 25. c3 {[%emt 0:00:58]} Kf7 {[%emt 0:00:17]} 26. Na5 {[%emt 0:00:22]} Rd7 {[%emt 0:00:25]} 27. Nc4 {[%emt 0:04:32]} Re8 {[%emt 0:03:56]} 28. fxe5 {[%emt 0:09:08]} Bxe5 {[%emt 0:00:53]} 29. Bg1 {[%emt 0:02:18]} b5 {[%emt 0:02:36]} 30. Na5 {[%emt 0:03:21]} Bf4 {[%emt 0:01:40]} 31. Rxe8 {[%emt 0:00:41]} Kxe8 {[%emt 0:00:05]} 32. Nc6 {[%emt 0:00:09]} Bc1 {[%emt 0:01:16]} 33. b3 {[%emt 0:00:13]} Rh7 {[%emt 0:02:10]} 34. Nd4 {[%emt 0:03:09]} Bb2 {[%emt 0:02:12]} 35. Ne2 {[%emt 0:00:13]} Re7 {[%emt 0:00:19]} 36. Kf1 {[%emt 0:00:17]} g5 {[%emt 0:00:36]} 37. Bd4 {[%emt 0:00:35]} b4 {[%emt 0:01:27]} 38. cxb4 {[%emt 0:00:59]} Bxd4 {[%emt 0:00:04]} 39. Nxd4 {[%emt 0:00:11]} Re4 {[%emt 0:00:14]} 40. Nc6 {[%emt 0:00:00]} f4 {[%emt 0:00:00]} 41. Nb8 {[%emt 0:01:53]} Rxb4 {[%emt 0:06:13]} 42. Nxa6 {[%emt 0:00:11]} Rb7 {[%emt 0:01:03]} 43. b4 {[%emt 0:00:27]} Kd7 {[%emt 0:01:28]} 44. a4 {[%emt 0:00:28]} Ra7 {[%emt 0:00:54]} 45. b5 {[%emt 0:00:17]} Kc8 {[%emt 0:00:53]} 46. a5 {[%emt 0:00:08]} Kb7 {[%emt 0:00:27]} 47. Kf2 {[%emt 0:02:00]} Rxa6 {[%emt 0:01:16]} 0-1

[Event "EYCC Open-U12 2019"]
[Site "Bratislava"]
[Date "2019.08.04"]
[Round "3.38"]
[White "Cnejev, Vladimir-Alexandru"]
[Black "Fizer, Marek"]
[Result "1-0"]
[ECO "B51"]
[WhiteElo "1907"]
[BlackElo "1624"]
[Annotator "NA"]
[PlyCount "49"]
[EventDate "2019.08.02"]
[EventType "swiss"]
[EventCountry "SVK"]
[SourceTitle "playchess.com"]
[Source "ChessBase"]
[SourceQuality "1"]
[TimeControl "40/5400+30:1800+30"]

1. e4 {[%emt 0:00:00]} c5 {[%emt 0:00:00]} 2. Nf3 {[%emt 0:00:00]} d6 {[%emt 0:00:04]} 3. Bb5+ {[%emt 0:00:00]} Nd7 {[%emt 0:00:15]} 4. O-O {[%emt 0:00:06]} a6 {[%emt 0:01:06]} 5. Bd3 {[%emt 0:00:09]} Ngf6 {[%emt 0:00:40]} 6. Re1 {[%emt 0:01:42]} e6 {[%emt 0:01:15]} 7. c3 {[%emt 0:00:34]} Be7 {[%emt 0:00:53]} 8. Bc2 {[%emt 0:00:14]} O-O {[%emt 0:01:41]} 9. d4 {[%emt 0:02:16]} b6 {[%emt 0:01:40]} 10. e5 {[%emt 0:00:39]} Ne8 {[%emt 0:04:43]} 11. Qd3 {[%emt 0:01:15]} g6 {[%emt 0:04:56]} 12. Bh6 {[%emt 0:00:14]} Ng7 {[%emt 0:00:06]} 13. Qe4 {[%emt 0:00:38]} d5 {[%emt 0:01:16]} 14. Qg4 {[%emt 0:00:36]} f5 {[%emt 0:02:30]} 15. exf6 {[%emt 0:00:37]} Nxf6 {[%emt 0:00:49]} 16. Qg5 {[%emt 0:02:35]} Ne4 {[%emt 0:06:57]} 17. Qc1 {[%emt 0:02:26]} Nd6 {[%emt 0:04:15]} 18. Ne5 {[%emt 0:07:52]} Qe8 {[%emt 0:01:21]} 19. Nd2 {[%emt 0:01:26]} cxd4 {[%emt 0:03:02]} 20. cxd4 {[%emt 0:00:35]} Ndf5 {[%emt 0:00:17]} 21. Bxf5 {[%emt 0:01:02]} Rxf5 {[%emt 0:04:17]} 22. Qc7 {[%emt 0:21:42]} Qd8 {[%emt 0:06:11]} 23. Qc6 {[%emt 0:06:06]} Qd6 {[%emt 0:06:12]} 24. Qxa8 {[%emt 0:00:13]} Qd8 25. Qc6 1-0

[Event "EYCC Open-U12 2019"]
[Site "Bratislava"]
[Date "2019.08.04"]
[Round "3.39"]
[White "Aasen, Fredrik"]
[Black "Stork, Christopher"]
[Result "0-1"]
[ECO "A20"]
[WhiteElo "1606"]
[BlackElo "1905"]
[Annotator "NA"]
[PlyCount "82"]
[EventDate "2019.08.02"]
[EventType "swiss"]
[EventCountry "SVK"]
[SourceTitle "playchess.com"]
[Source "ChessBase"]
[SourceQuality "1"]
[TimeControl "40/5400+30:1800+30"]

1. c4 {[%emt 0:00:00]} e5 {[%emt 0:00:00]} 2. g3 {[%emt 0:00:00]} Nf6 {[%emt 0:00:00]} 3. Bg2 {[%emt 0:00:00]} d5 {[%emt 0:00:10]} 4. cxd5 {[%emt 0:00:19]} Nxd5 {[%emt 0:00:05]} 5. Nc3 {[%emt 0:00:33]} Nb6 {[%emt 0:00:28]} 6. Nf3 {[%emt 0:01:41]} Nc6 {[%emt 0:00:15]} 7. O-O {[%emt 0:01:00]} Be7 {[%emt 0:00:38]} 8. d3 {[%emt 0:01:48]} O-O {[%emt 0:01:01]} 9. a3 {[%emt 0:04:09]} a5 {[%emt 0:01:14]} 10. Be3 {[%emt 0:06:30]} Be6 {[%emt 0:01:25]} 11. Bxb6 {[%emt 0:06:37]} cxb6 {[%emt 0:00:55]} 12. Rc1 {[%emt 0:05:42]} Kh8 {[%emt 0:05:30]} 13. h3 {[%emt 0:10:47]} f5 {[%emt 0:03:17]} 14. Qa4 {[%emt 0:16:31]} f4 {[%emt 0:19:26]} 15. g4 {[%emt 0:07:32]} h5 {[%emt 0:01:35]} 16. gxh5 {[%emt 0:01:46]} Qe8 {[%emt 0:00:49]} 17. Qb5 {[%emt 0:10:33]} Qxh5 {[%emt 0:05:22]} 18. Kh2 {[%emt 0:04:09]} Rf6 {[%emt 0:03:02]} 19. Rh1 {[%emt 0:06:05]} Rh6 {[%emt 0:11:37]} 20. Kg1 {[%emt 0:00:50]} Bc5 {[%emt 0:01:36]} 21. Ne4 {[%emt 0:01:50]} Nd4 {[%emt 0:01:28]} 22. Nxd4 {[%emt 0:00:45]} Bxd4 {[%emt 0:00:17]} 23. Rc2 {[%emt 0:04:37]} Qh4 {[%emt 0:05:55]} 24. Rh2 {[%emt 0:02:47]} Rg6 {[%emt 0:01:12]} 25. Kf1 {[%emt 0:01:22]} Bf5 {[%emt 0:05:44]} 26. Rc4 {[%emt 0:02:13]} Rxg2 {[%emt 0:01:45]} 27. Rxg2 {[%emt 0:00:45]} Bxh3 {[%emt 0:01:43]} 28. Rxd4 {[%emt 0:01:14]} exd4 {[%emt 0:00:24]} 29. Qg5 {[%emt 0:01:09]} Qxg5 {[%emt 0:00:30]} 30. Nxg5 {[%emt 0:00:09]} Bxg2+ {[%emt 0:00:04]} 31. Kxg2 {[%emt 0:00:06]} Rc8 {[%emt 0:00:35]} 32. Ne6 {[%emt 0:01:12]} Rc2 {[%emt 0:00:30]} 33. Nxd4 {[%emt 0:00:14]} Rxb2 {[%emt 0:00:14]} 34. Kf3 {[%emt 0:00:27]} b5 {[%emt 0:01:03]} 35. Kxf4 {[%emt 0:00:18]} b4 {[%emt 0:00:07]} 36. axb4 {[%emt 0:00:14]} a4 {[%emt 0:00:15]} 37. e4 {[%emt 0:01:13]} a3 {[%emt 0:00:13]} 38. e5 {[%emt 0:00:11]} a2 {[%emt 0:00:17]} 39. e6 {[%emt 0:00:20]} a1=Q {[%emt 0:00:13]} 40. e7 {[%emt 0:00:00]} Rxf2+ {[%emt 0:00:00]} 41. Nf3 {[%emt 0:00:38]} Qf6+ {[%emt 0:01:08]} 0-1

[Event "EYCC Open-U12 2019"]
[Site "Bratislava"]
[Date "2019.08.04"]
[Round "3.40"]
[White "Paseka, Matyas"]
[Black "Werner, Hong Quan Dan"]
[Result "1-0"]
[ECO "B06"]
[WhiteElo "1917"]
[BlackElo "1734"]
[Annotator "NA"]
[PlyCount "47"]
[EventDate "2019.08.02"]
[EventType "swiss"]
[EventCountry "SVK"]
[SourceTitle "playchess.com"]
[Source "ChessBase"]
[SourceQuality "1"]
[TimeControl "40/5400+30:1800+30"]

1. e4 {[%emt 0:00:00]} g6 {[%emt 0:00:00]} 2. d4 {[%emt 0:00:00]} Bg7 {[%emt 0:00:06]} 3. Nc3 {[%emt 0:00:17]} d6 {[%emt 0:00:34]} 4. Be3 {[%emt 0:00:19]} a6 {[%emt 0:01:24]} 5. f4 {[%emt 0:00:25]} Nf6 {[%emt 0:04:37]} 6. Nf3 {[%emt 0:02:06]} c5 {[%emt 0:03:52]} 7. Bd3 {[%emt 0:11:37]} Ng4 {[%emt 0:03:03]} 8. Bg1 {[%emt 0:04:32]} Qb6 {[%emt 0:06:33]} 9. h3 {[%emt 0:05:18]} Nh6 {[%emt 0:02:54]} 10. Nd5 {[%emt 0:01:40]} Qd8 {[%emt 0:08:31]} 11. dxc5 {[%emt 0:04:22]} Nd7 {[%emt 0:11:01]} 12. cxd6 {[%emt 0:04:13]} exd6 {[%emt 0:00:15]} 13. c3 {[%emt 0:01:10]} O-O {[%emt 0:04:33]} 14. Bd4 {[%emt 0:06:49]} f5 {[%emt 0:02:26]} 15. Bc4 {[%emt 0:07:06]} b5 {[%emt 0:13:30]} 16. Nc7+ {[%emt 0:15:31]} bxc4 {[%emt 0:04:00]} 17. Bxg7 {[%emt 0:00:12]} Rf7 {[%emt 0:00:26]} 18. Ne6 {[%emt 0:06:25]} Qe7 {[%emt 0:06:39]} 19. Bxh6 {[%emt 0:00:16]} Qxe6 {[%emt 0:02:09]} 20. Ng5 {[%emt 0:00:16]} Qe7 {[%emt 0:03:03]} 21. Qd5 {[%emt 0:01:50]} Rb8 {[%emt 0:01:14]} 22. O-O-O {[%emt 0:04:02]} Nc5 {[%emt 0:01:12]} 23. Nxf7 {[%emt 0:01:47]} Qxf7 {[%emt 0:03:01]} 24. Qxd6 {[%emt 0:00:29]} 1-0

[Event "EYCC Open-U12 2019"]
[Site "Bratislava"]
[Date "2019.08.04"]
[Round "3.41"]
[White "Shatil, Shir"]
[Black "Kluehs, Gustaf"]
[Result "1/2-1/2"]
[ECO "A52"]
[WhiteElo "1653"]
[BlackElo "1811"]
[Annotator "NA"]
[PlyCount "56"]
[EventDate "2019.08.02"]
[EventType "swiss"]
[EventCountry "SVK"]
[SourceTitle "playchess.com"]
[Source "ChessBase"]
[SourceQuality "1"]
[TimeControl "40/5400+30:1800+30"]

1. d4 {[%emt 0:00:00]} Nf6 {[%emt 0:00:00]} 2. c4 {[%emt 0:00:00]} e5 {[%emt 0:00:00]} 3. dxe5 {[%emt 0:00:00]} Ng4 {[%emt 0:00:00]} 4. Bf4 {[%emt 0:00:00]} Nc6 {[%emt 0:00:00]} 5. Nf3 {[%emt 0:00:00]} Bb4+ {[%emt 0:00:00]} 6. Nc3 {[%emt 0:00:00]} Bxc3+ {[%emt 0:00:00]} 7. bxc3 {[%emt 0:00:00]} Qe7 {[%emt 0:00:00]} 8. Qd5 {[%emt 0:00:03]} f6 {[%emt 0:00:00]} 9. exf6 {[%emt 0:00:06]} Nxf6 {[%emt 0:00:04]} 10. Qd3 {[%emt 0:00:08]} d6 {[%emt 0:00:03]} 11. g3 {[%emt 0:00:09]} O-O {[%emt 0:00:07]} 12. Bg2 {[%emt 0:01:45]} Bg4 {[%emt 0:00:31]} 13. O-O {[%emt 0:03:14]} Rae8 {[%emt 0:00:30]} 14. e3 {[%emt 0:01:52]} Kh8 {[%emt 0:02:03]} 15. Rab1 {[%emt 0:05:13]} Ne5 {[%emt 0:06:22]} 16. Nxe5 {[%emt 0:03:54]} dxe5 {[%emt 0:00:06]} 17. Bg5 {[%emt 0:00:49]} e4 {[%emt 0:01:41]} 18. Qc2 {[%emt 0:09:53]} b6 {[%emt 0:05:23]} 19. h3 {[%emt 0:02:24]} Bf3 {[%emt 0:00:30]} 20. Rb5 {[%emt 0:07:24]} Qe6 {[%emt 0:04:04]} 21. Bxf3 {[%emt 0:08:08]} exf3 {[%emt 0:00:22]} 22. Qf5 {[%emt 0:09:21]} Qxc4 {[%emt 0:02:42]} 23. Rb4 {[%emt 0:01:24]} Qe2 {[%emt 0:04:12]} 24. Bxf6 {[%emt 0:06:40]} Rxf6 {[%emt 0:00:32]} 25. Re4 {[%emt 0:03:25]} Ref8 {[%emt 0:02:29]} 26. Qd7 {[%emt 0:01:41]} Qc2 {[%emt 0:05:16]} 27. Re7 {[%emt 0:06:24]} Qxa2 {[%emt 0:14:12]} 28. Rxg7 R6f7 1/2-1/2

[Event "EYCC Open-U12 2019"]
[Site "Bratislava"]
[Date "2019.08.04"]
[Round "3.42"]
[White "Vilimek, Vit"]
[Black "Magold, Filip"]
[Result "0-1"]
[ECO "C00"]
[WhiteElo "1523"]
[BlackElo "1865"]
[Annotator "NA"]
[PlyCount "58"]
[EventDate "2019.08.02"]
[EventType "swiss"]
[EventCountry "SVK"]
[SourceTitle "playchess.com"]
[Source "ChessBase"]
[SourceQuality "1"]
[TimeControl "40/5400+30:1800+30"]

1. e4 {[%emt 0:00:00]} e6 {[%emt 0:00:00]} 2. Nf3 {[%emt 0:00:00]} d5 {[%emt 0:00:00]} 3. e5 {[%emt 0:00:00]} c5 {[%emt 0:00:00]} 4. b4 {[%emt 0:00:00]} cxb4 {[%emt 0:00:20]} 5. d4 {[%emt 0:00:00]} Nc6 {[%emt 0:00:14]} 6. a3 {[%emt 0:00:08]} bxa3 {[%emt 0:00:12]} 7. Bxa3 {[%emt 0:00:11]} Bxa3 {[%emt 0:00:40]} 8. Nxa3 {[%emt 0:00:01]} Nge7 {[%emt 0:01:18]} 9. Nb5 {[%emt 0:00:10]} O-O {[%emt 0:04:36]} 10. Bd3 {[%emt 0:00:07]} f6 {[%emt 0:02:56]} 11. O-O {[%emt 0:06:22]} fxe5 {[%emt 0:10:51]} 12. dxe5 {[%emt 0:03:17]} Nf5 {[%emt 0:06:08]} 13. c4 {[%emt 0:03:37]} Nh4 {[%emt 0:10:22]} 14. Nxh4 {[%emt 0:07:04]} Qxh4 {[%emt 0:00:08]} 15. cxd5 {[%emt 0:02:11]} exd5 {[%emt 0:15:57]} 16. Nc7 {[%emt 0:03:12]} Rb8 {[%emt 0:04:27]} 17. Bb5 {[%emt 0:05:27]} Nxe5 {[%emt 0:15:37]} 18. Qxd5+ {[%emt 0:00:12]} Nf7 {[%emt 0:00:06]} 19. Rxa7 {[%emt 0:04:50]} Qf4 {[%emt 0:06:32]} 20. Ne6 {[%emt 0:04:13]} Bxe6 {[%emt 0:00:06]} 21. Qxe6 {[%emt 0:00:02]} Kh8 {[%emt 0:00:59]} 22. Qe3 {[%emt 0:18:17]} Qb4 {[%emt 0:02:36]} 23. Bd3 {[%emt 0:04:20]} Rbe8 {[%emt 0:06:04]} 24. Qg3 {[%emt 0:14:20]} Qb6 {[%emt 0:02:40]} 25. Ra4 {[%emt 0:04:07]} Ne5 {[%emt 0:01:32]} 26. Bc2 {[%emt 0:04:20]} Qc5 {[%emt 0:02:00]} 27. Bb3 {[%emt 0:03:49]} Nc6 {[%emt 0:02:09]} 28. Rh4 {[%emt 0:02:19]} h6 {[%emt 0:00:58]} 29. Qg6 {[%emt 0:01:49]} Qxf2+ {[%emt 0:00:26]} 0-1

[Event "EYCC Open-U12 2019"]
[Site "Bratislava"]
[Date "2019.08.04"]
[Round "3.43"]
[White "Soucek, Jan"]
[Black "Nemsadze, Daviti"]
[Result "1/2-1/2"]
[ECO "A45"]
[WhiteElo "1577"]
[BlackElo "1794"]
[Annotator "NA"]
[PlyCount "82"]
[EventDate "2019.08.02"]
[EventType "swiss"]
[EventCountry "SVK"]
[SourceTitle "playchess.com"]
[Source "ChessBase"]
[SourceQuality "1"]
[TimeControl "40/5400+30:1800+30"]

1. d4 {[%emt 0:00:00]} Nf6 {[%emt 0:00:06]} 2. Bg5 {[%emt 0:00:00]} c5 {[%emt 0:02:03]} 3. e3 {[%emt 0:00:53]} Qb6 {[%emt 0:03:12]} 4. b3 {[%emt 0:02:24]} cxd4 {[%emt 0:02:44]} 5. exd4 {[%emt 0:00:50]} Ne4 {[%emt 0:00:52]} 6. Be3 {[%emt 0:01:29]} e6 {[%emt 0:02:44]} 7. c3 {[%emt 0:01:41]} d5 {[%emt 0:02:53]} 8. Bd3 {[%emt 0:02:32]} Qc7 {[%emt 0:07:10]} 9. Bxe4 {[%emt 0:16:15]} dxe4 {[%emt 0:01:09]} 10. Ne2 {[%emt 0:00:42]} Bd6 {[%emt 0:00:28]} 11. Nd2 {[%emt 0:01:46]} f5 {[%emt 0:19:10]} 12. Nc4 {[%emt 0:01:32]} Be7 {[%emt 0:02:27]} 13. O-O {[%emt 0:04:02]} b5 {[%emt 0:02:34]} 14. Ne5 {[%emt 0:11:42]} O-O {[%emt 0:05:46]} 15. Qd2 {[%emt 0:17:47]} Bd6 {[%emt 0:07:18]} 16. f4 {[%emt 0:15:11]} exf3 {[%emt 0:07:53]} 17. Rxf3 {[%emt 0:09:18]} Bb7 {[%emt 0:08:01]} 18. Rg3 {[%emt 0:04:11]} Nc6 {[%emt 0:00:18]} 19. Bh6 {[%emt 0:02:29]} Bxe5 {[%emt 0:00:11]} 20. dxe5 {[%emt 0:00:10]} Rf7 {[%emt 0:00:00]} 21. Bf4 {[%emt 0:00:58]} Rd8 {[%emt 0:00:17]} 22. Qe3 {[%emt 0:00:17]} Rfd7 {[%emt 0:00:17]} 23. Kf2 {[%emt 0:02:13]} Ne7 24. Bg5 {[%emt 0:01:00]} Nd5 {[%emt 0:02:45]} 25. Bxd8 {[%emt 0:01:09]} Rxd8 {[%emt 0:02:20]} 26. Qd4 {[%emt 0:01:19]} Ne7 {[%emt 0:01:11]} 27. Qh4 {[%emt 0:00:56]} Ng6 {[%emt 0:00:13]} 28. Qg5 {[%emt 0:00:04]} Nxe5 {[%emt 0:00:52]} 29. Nd4 {[%emt 0:00:38]} h6 {[%emt 0:02:40]} 30. Qxg7+ {[%emt 0:00:43]} Qxg7 {[%emt 0:00:23]} 31. Rxg7+ {[%emt 0:00:04]} Kxg7 32. Nxe6+ Kf6 {[%emt 0:00:49]} 33. Nxd8 {[%emt 0:00:34]} Be4 {[%emt 0:00:03]} 34. Ke3 {[%emt 0:00:59]} Ke7 {[%emt 0:00:17]} 35. Kd4 {[%emt 0:00:49]} Nd7 {[%emt 0:01:43]} 36. g4 {[%emt 0:00:19]} Kxd8 {[%emt 0:00:14]} 37. Rf1 {[%emt 0:00:16]} Ke7 {[%emt 0:00:51]} 38. gxf5 {[%emt 0:01:01]} Bc6 {[%emt 0:00:06]} 39. c4 {[%emt 0:00:30]} bxc4 {[%emt 0:00:19]} 40. Kxc4 {[%emt 0:00:16]} Kf6 {[%emt 0:00:14]} 41. b4 {[%emt 0:00:24]} a6 {[%emt 0:00:13]} 1/2-1/2

[Event "EYCC Open-U12 2019"]
[Site "Bratislava"]
[Date "2019.08.04"]
[Round "3.44"]
[White "Asllani, Dorian"]
[Black "Kolani, Arjun"]
[Result "0-1"]
[ECO "D85"]
[WhiteElo "1718"]
[BlackElo "1699"]
[Annotator "NA"]
[PlyCount "118"]
[EventDate "2019.08.02"]
[EventType "swiss"]
[EventCountry "SVK"]
[SourceTitle "playchess.com"]
[Source "ChessBase"]
[SourceQuality "1"]
[TimeControl "40/5400+30:1800+30"]

1. d4 {[%emt 0:00:00]} Nf6 {[%emt 0:00:00]} 2. c4 {[%emt 0:00:04]} g6 {[%emt 0:00:00]} 3. Nc3 {[%emt 0:00:24]} d5 {[%emt 0:00:06]} 4. cxd5 {[%emt 0:00:45]} Nxd5 {[%emt 0:00:21]} 5. e4 {[%emt 0:00:16]} Nxc3 {[%emt 0:00:13]} 6. bxc3 {[%emt 0:00:03]} Bg7 {[%emt 0:00:11]} 7. Be3 {[%emt 0:01:49]} c5 {[%emt 0:00:30]} 8. Rc1 {[%emt 0:00:42]} Qa5 {[%emt 0:00:27]} 9. Qd2 {[%emt 0:00:32]} O-O {[%emt 0:00:27]} 10. d5 {[%emt 0:02:04]} e6 {[%emt 0:00:44]} 11. c4 {[%emt 0:01:39]} Qxd2+ {[%emt 0:01:53]} 12. Kxd2 {[%emt 0:00:15]} b6 {[%emt 0:00:33]} 13. f3 {[%emt 0:01:20]} exd5 {[%emt 0:02:15]} 14. cxd5 {[%emt 0:02:14]} Nd7 {[%emt 0:06:05]} 15. g3 {[%emt 0:01:52]} Ne5 {[%emt 0:04:41]} 16. h3 {[%emt 0:02:52]} Rd8 {[%emt 0:04:27]} 17. Ke1 {[%emt 0:11:17]} f5 {[%emt 0:03:19]} 18. Rh2 {[%emt 0:12:22]} fxe4 {[%emt 0:10:58]} 19. fxe4 {[%emt 0:01:07]} Re8 {[%emt 0:06:06]} 20. Rd2 {[%emt 0:03:10]} Nf7 {[%emt 0:05:12]} 21. Bg2 {[%emt 0:06:29]} Nd6 {[%emt 0:03:26]} 22. Bf4 {[%emt 0:06:44]} Be5 {[%emt 0:03:28]} 23. Bxe5 {[%emt 0:12:51]} Rxe5 {[%emt 0:00:40]} 24. Rcd1 {[%emt 0:01:43]} Ba6 {[%emt 0:03:47]} 25. Rf2 {[%emt 0:11:33]} Nxe4 {[%emt 0:03:08]} 26. Bxe4 {[%emt 0:00:42]} Rxe4+ {[%emt 0:00:08]} 27. Kd2 {[%emt 0:00:08]} Rd4+ {[%emt 0:01:24]} 28. Kc2 {[%emt 0:00:20]} Rxd1 {[%emt 0:02:55]} 29. Kxd1 {[%emt 0:00:07]} Rd8 {[%emt 0:00:06]} 30. Rd2 {[%emt 0:00:08]} Bb7 {[%emt 0:02:32]} 31. d6 {[%emt 0:00:08]} Kf7 {[%emt 0:00:14]} 32. h4 {[%emt 0:01:05]} Ke6 {[%emt 0:03:06]} 33. Nh3 {[%emt 0:00:09]} Rxd6 {[%emt 0:01:57]} 34. Ng5+ {[%emt 0:00:51]} Ke7 {[%emt 0:00:59]} 35. Nxh7 {[%emt 0:00:19]} Rxd2+ {[%emt 0:00:48]} 36. Kxd2 {[%emt 0:00:06]} Ke6 {[%emt 0:00:51]} 37. g4 {[%emt 0:01:37]} b5 {[%emt 0:04:06]} 38. Nf8+ {[%emt 0:00:53]} Kf7 {[%emt 0:00:27]} 39. Nd7 {[%emt 0:00:19]} c4 {[%emt 0:00:48]} 40. Kc3 {[%emt 0:00:00]} a5 {[%emt 0:00:00]} 41. a3 {[%emt 0:00:35]} Bc8 {[%emt 0:05:28]} 42. Ne5+ {[%emt 0:01:57]} Kf6 {[%emt 0:00:56]} 43. Nc6 {[%emt 0:00:20]} Bxg4 {[%emt 0:00:57]} 44. Nxa5 {[%emt 0:00:06]} Bd7 {[%emt 0:00:29]} 45. a4 {[%emt 0:04:24]} bxa4 {[%emt 0:01:34]} 46. Nxc4 {[%emt 0:00:12]} Be6 {[%emt 0:02:49]} 47. Nd6 {[%emt 0:01:42]} Ke5 {[%emt 0:03:59]} 48. Ne8 {[%emt 0:01:31]} Bd7 {[%emt 0:08:00]} 49. Ng7 {[%emt 0:09:57]} Kf6 {[%emt 0:00:25]} 50. h5 {[%emt 0:00:10]} g5 {[%emt 0:00:20]} 51. h6 {[%emt 0:00:19]} Kg6 {[%emt 0:00:13]} 52. Nh5 {[%emt 0:00:05]} Kxh6 {[%emt 0:00:38]} 53. Nf6 {[%emt 0:00:21]} Be6 {[%emt 0:01:38]} 54. Kb4 {[%emt 0:00:33]} Bb3 {[%emt 0:00:22]} 55. Kc3 {[%emt 0:00:18]} Kg6 {[%emt 0:00:53]} 56. Ng4 {[%emt 0:02:00]} Kf5 {[%emt 0:01:39]} 57. Nh6+ {[%emt 0:00:33]} Kf4 {[%emt 0:00:28]} 58. Kb4 {[%emt 0:01:00]} Be6 {[%emt 0:04:03]} 59. Kxa4 {[%emt 0:02:14]} Ke5 {[%emt 0:00:14]} 0-1